fUSD/lending_fUSD_20240814
["ID","MTS","AMOUNT","RATE_DAILY","PERIOD"]
[334888000,1723626692329,-2731.88,0.0001863,2]
[334888001,1723626692338,-2589.64,0.0001863,2]
[334888002,1723626692348,-552.38,0.0001863,2]
[334888003,1723626692358,-2632.4,0.0001863,2]
[334888004,1723626692368,-1402.43,0.0001863,2]
[334888005,1723626692378,-2123.25,0.0001863,2]
[334888006,1723626692387,-670.79,0.0001863,2]
[334888007,1723626692397,-759.51,0.0001863,2]
[334888008,1723626692408,-985.93,0.0001863,2]
[334888009,1723626692418,-3137.69,0.0001863,2]
[334888010,1723626692430,-500.0,0.0001863,2]
[334888011,1723626692440,-1305.48,0.0001863,2]
[334888012,1723626692451,-644.37,0.0001863,2]
[334888013,1723626692461,-1305.6,0.0001863,2]
[334888014,1723626692471,-536.79,0.0001863,2]
[334888015,1723626692483,-983.66,0.0001863,2]
[334888016,1723626692498,-500.0,0.0001863,2]
[334888017,1723626692510,-500.0,0.0001863,2]
[334888018,1723626692520,-677.53,0.0001863,2]
[334888019,1723626692701,-2121.13,0.0001863,2]
[334888020,1723626692729,-638.37,0.0001863,2]
[334888021,1723626692739,-759.39,0.0001863,2]
[334888022,1723626692749,-500.0,0.0001863,2]
[334888023,1723626692758,-500.0,0.0001863,2]
[334888024,1723626692768,-1352.79,0.0001863,2]
[334888025,1723626692778,-794.59,0.0001863,2]
[334888026,1723626692787,-849.35,0.0001863,2]
[334888027,1723626692797,-655.62,0.0001863,2]
[334888028,1723626692807,-1159.21,0.0001863,2]
[334888029,1723626692817,-733.33,0.0001863,2]
[334888030,1723626692827,-500.0,0.0001863,2]
[334888031,1723626692837,-562.63,0.0001863,2]
[334888032,1723626692847,-1460.87,0.0001863,2]
[334888033,1723626692856,-996.55,0.0001863,2]
[334888034,1723626692866,-1258.81,0.0001863,2]
[334888035,1723626692875,-268.0318605,0.0001863,2]
[334888036,1723626692884,-682.77,0.0001863,2]
[334888037,1723626692894,-725.26,0.0001863,2]
[334888038,1723626692903,-796.91,0.0001863,2]
[334888039,1723626692913,-678.33,0.0001863,2]
[334888040,1723626692923,-604.11,0.0001863,2]
[334888041,1723626692932,-500.0,0.0001863,2]
[334888042,1723626692942,-1036.99,0.0001863,2]
[334888043,1723626692952,-684.51,0.0001863,2]
[334888044,1723626692963,-2400.86,0.0001863,2]
[334888045,1723626692974,-1157.66,0.0001863,2]
[334888046,1723626692991,-2787.1,0.0001863,2]
[334888047,1723626693001,-500.0,0.0001863,2]
[334888048,1723626693011,-1126.69,0.0001863,2]
[334888049,1723626693022,-1607.6,0.0001863,2]
[334888050,1723626693034,-780.32,0.0001863,2]
[334888051,1723626693044,-544.62,0.0001863,2]
[334888052,1723626693055,-507.47,0.0001863,2]
[334888053,1723626693065,-3758.29,0.0001863,2]
[334888054,1723626693074,-1854.98,0.0001863,2]
[334888055,1723626693084,-424.56888698,0.0001863,2]
[334888056,1723626693095,-642.83,0.0001863,2]
[334888057,1723626693106,-556.33,0.0001863,2]
[334888058,1723626693116,-500.0,0.0001863,2]
[334888059,1723626693128,-659.96,0.0001863,2]
[334888060,1723626693139,-635.37,0.0001863,2]
[334888061,1723626693150,-810.55,0.0001863,2]
[334888062,1723626693160,-500.0,0.0001863,2]
[334888063,1723626693171,-734.11,0.0001863,2]
[334888064,1723626693181,-1023.98,0.0001863,2]
[334888065,1723626693191,-893.45,0.0001863,2]
[334888066,1723626693201,-2346.66,0.0001863,2]
[334888067,1723626693211,-7848.21,0.0001863,2]
[334888068,1723626693221,-687.93,0.0001863,2]
[334888069,1723626693238,-743.2,0.0001863,2]
[334888070,1723626693249,-150.0,0.00018672,2]
[334888071,1723626693259,-150.0,0.00018739,2]
[334888072,1723626693270,-150.0,0.00018739,2]
[334888073,1723626693279,-600.0,0.00018746,2]
[334888074,1723626693288,-150.0,0.00018807,2]
[334888075,1723626693298,-200.0,0.00018834,10]
[334888076,1723626693307,-150.0,0.00018874,2]
[334888077,1723626693318,-150.0,0.00018884,2]
[334888078,1723626693327,-300.0,0.000189,6]
[334888079,1723626693337,-1500.86,0.00018904,2]
[334888080,1723626693347,-1105.99,0.00018904,2]
[334888081,1723626693357,-601.4,0.00018904,2]
[334888082,1723626693367,-849.17,0.00018904,2]
[334888083,1723626693377,-500.0,0.00018904,2]
[334888084,1723626693387,-500.0,0.00018904,2]
[334888085,1723626693396,-500.0,0.00018904,2]
[334888086,1723626693406,-512.44,0.00018904,2]
[334888087,1723626693416,-678.29,0.00018904,2]
[334888088,1723626693427,-511.38,0.00018904,2]
[334888089,1723626693441,-500.0,0.00018904,2]
[334888090,1723626693451,-1974.32,0.00018904,2]
[334888091,1723626693461,-226.61,0.00018904,2]
[334888092,1723626693471,-500.0,0.00018904,2]
[334888093,1723626693487,-392.6374666,0.00018904,2]
[334888094,1723626693497,-591.86,0.00018904,2]
[334888095,1723626693508,-666.36,0.00018904,2]
[334888096,1723626693519,-554.42,0.00018904,2]
[334888097,1723626693529,-500.0,0.00018904,2]
[334888098,1723626693539,-500.0,0.00018904,2]
[334888099,1723626693548,-573.31,0.00018904,2]
[334888100,1723626693558,-500.0,0.00018904,2]
[334888101,1723626693568,-783.31,0.00018904,2]
[334888102,1723626693578,-259.93225656,0.00018904,2]
[334888103,1723626693589,-520.19,0.00018904,2]
[334888104,1723626693599,-922.73,0.00018904,2]
[334888105,1723626693609,-500.0,0.00018904,2]
[334888106,1723626693619,-830.91,0.00018904,2]
[334888107,1723626693630,-500.0,0.00018904,2]
[334888108,1723626693639,-690.05,0.00018904,2]
[334888109,1723626693650,-500.0,0.00018904,2]
[334888110,1723626693660,-818.44,0.00018904,2]
[334888111,1723626693670,-500.0,0.00018904,2]
[334888112,1723626693680,-542.84,0.00018904,2]
[334888113,1723626693690,-500.0,0.00018904,2]
[334888114,1723626693699,-609.17,0.00018904,2]
[334888115,1723626693709,-579.6,0.00018904,2]
[334888116,1723626693719,-487.2643512,0.00018904,2]
[334888117,1723626693731,-653.02,0.00018904,2]
[334888118,1723626693741,-2177.45,0.00018904,2]
[334888119,1723626693750,-1063.82,0.00018904,2]
[334888120,1723626693760,-500.0,0.00018904,2]
[334888121,1723626693771,-845.57,0.00018904,2]
[334888122,1723626693780,-1527.58,0.00018904,2]
[334888123,1723626693790,-676.31,0.00018904,2]
[334888124,1723626693800,-1715.7,0.00018904,2]
[334888125,1723626693811,-500.0,0.00018904,2]
[334888126,1723626693825,-754.95,0.00018904,2]
[334888127,1723626693835,-500.0,0.00018904,2]
[334888128,1723626693845,-972.03,0.00018904,2]
[334888129,1723626693855,-524.53,0.00018904,2]
[334888130,1723626693864,-500.0,0.00018904,2]
[334888131,1723626693874,-770.2,0.00018904,2]
[334888132,1723626693884,-2373.49,0.00018904,2]
[334888133,1723626693894,-608.38,0.00018904,2]
[334888134,1723626693904,-562.69,0.00018904,2]
[334888135,1723626693914,-644.93,0.00018904,2]
[334888136,1723626693924,-6691.92,0.00018904,2]
[334888137,1723626693934,-2731.88,0.00018904,2]
[334888138,1723626693943,-2589.64,0.00018904,2]
[334888139,1723626693953,-552.38,0.00018904,2]
[334888140,1723626693963,-2632.4,0.00018904,2]
[334888141,1723626693972,-1402.43,0.00018904,2]
[334888142,1723626693984,-2123.25,0.00018904,2]
[334888143,1723626693994,-670.79,0.00018904,2]
[334888144,1723626694004,-759.51,0.00018904,2]
[334888145,1723626694014,-985.93,0.00018904,2]
[334888146,1723626694024,-3137.69,0.00018904,2]
[334888147,1723626694034,-500.0,0.00018904,2]
[334888148,1723626694044,-1305.48,0.00018904,2]
[334888149,1723626694054,-644.37,0.00018904,2]
[334888150,1723626694064,-1305.6,0.00018904,2]
[334888151,1723626694074,-536.79,0.00018904,2]
[334888152,1723626694083,-983.66,0.00018904,2]
[334888153,1723626694093,-500.0,0.00018904,2]
[334888154,1723626694103,-500.0,0.00018904,2]
[334888155,1723626694112,-677.53,0.00018904,2]
[334888156,1723626694122,-2121.13,0.00018904,2]
[334888157,1723626694131,-638.37,0.00018904,2]
[334888158,1723626694141,-759.39,0.00018904,2]
[334888159,1723626694150,-500.0,0.00018904,2]
[334888160,1723626694159,-500.0,0.00018904,2]
[334888161,1723626694168,-1352.79,0.00018904,2]
[334888162,1723626694177,-794.59,0.00018904,2]
[334888163,1723626694187,-849.35,0.00018904,2]
[334888164,1723626694196,-655.62,0.00018904,2]
[334888165,1723626694206,-1159.21,0.00018904,2]
[334888166,1723626694216,-733.33,0.00018904,2]
[334888167,1723626694226,-500.0,0.00018904,2]
[334888168,1723626694238,-562.63,0.00018904,2]
[334888169,1723626694247,-1460.87,0.00018904,2]
[334888170,1723626694256,-996.55,0.00018904,2]
[334888171,1723626694266,-1258.81,0.00018904,2]
[334888172,1723626694275,-682.77,0.00018904,2]
[334888173,1723626694284,-725.26,0.00018904,2]
[334888174,1723626694294,-796.91,0.00018904,2]
[334888175,1723626694304,-678.33,0.00018904,2]
[334888176,1723626694313,-604.11,0.00018904,2]
[334888177,1723626694322,-500.0,0.00018904,2]
[334888178,1723626694332,-1036.99,0.00018904,2]
[334888179,1723626694341,-684.51,0.00018904,2]
[334888180,1723626694351,-2400.86,0.00018904,2]
[334888181,1723626694360,-1157.66,0.00018904,2]
[334888182,1723626694369,-2787.1,0.00018904,2]
[334888183,1723626694379,-500.0,0.00018904,2]
[334888184,1723626694389,-1126.69,0.00018904,2]
[334888185,1723626694399,-1607.6,0.00018904,2]
[334888186,1723626694408,-780.32,0.00018904,2]
[334888187,1723626694417,-544.62,0.00018904,2]
[334888188,1723626694427,-507.47,0.00018904,2]
[334888189,1723626694438,-3758.29,0.00018904,2]
[334888190,1723626694448,-1854.98,0.00018904,2]
[334888191,1723626694457,-642.83,0.00018904,2]
[334888192,1723626694467,-556.33,0.00018904,2]
[334888193,1723626694476,-500.0,0.00018904,2]
[334888194,1723626694487,-659.96,0.00018904,2]
[334888195,1723626694496,-635.37,0.00018904,2]
[334888196,1723626694505,-810.55,0.00018904,2]
[334888197,1723626694517,-500.0,0.00018904,2]
[334888198,1723626694527,-734.11,0.00018904,2]
[334888199,1723626694536,-1023.98,0.00018904,2]
[334888200,1723626694546,-893.45,0.00018904,2]
[334888201,1723626694555,-2346.66,0.00018904,2]
[334888202,1723626694564,-7848.21,0.00018904,2]
[334888203,1723626694574,-687.93,0.00018904,2]
[334888204,1723626694583,-743.2,0.00018904,2]
[334888205,1723626694592,-150.0,0.00018908,2]
[334888206,1723626694602,-710.03,0.00018915,2]
[334888207,1723626694612,-1000.0,0.00018925,2]
[334888208,1723626694622,-150.0,0.00018942,2]
[334888209,1723626694631,-14380.0113903,0.00018974,2]
[334888210,1723626694641,-28999.0742856,0.00019,2]
[334888211,1723626694651,-2027.02839557,0.00019,4]
[334888212,1723626694660,-647.05351092,0.00019,2]
[334888213,1723626694669,-341936.47295096,0.00019,2]
[334888214,1723626694678,-1559.55561486,0.00019,2]
[334888215,1723626694687,-1482.67156504,0.00019,2]
[334888216,1723626694697,-155.28326801,0.00019,2]
[334888217,1723626694707,-150.0,0.00019009,2]
[334888218,1723626694716,-1613.0,0.00019028,2]
[334888219,1723626694726,-150.0,0.00019077,2]
[334888220,1723626694737,-150.0,0.00019077,2]
[334888221,1723626694746,-150.0,0.00019145,2]
[334888222,1723626694756,-500.0,0.00019178,2]
[334888223,1723626694765,-1500.86,0.00019178,2]
[334888224,1723626694775,-1105.99,0.00019178,2]
[334888225,1723626694784,-154.515367,0.00019178,2]
[334888226,1723626694793,-601.4,0.00019178,2]
[334888227,1723626694802,-849.17,0.00019178,2]
[334888228,1723626694811,-500.0,0.00019178,2]
[334888229,1723626694821,-312.55863673,0.00019178,2]
[334888230,1723626694831,-500.0,0.00019178,2]
[334888231,1723626694840,-512.44,0.00019178,2]
[334888232,1723626694849,-678.29,0.00019178,2]
[334888233,1723626694859,-511.38,0.00019178,2]
[334888234,1723626694869,-224.34,0.00019178,2]
[334888235,1723626694878,-1974.32,0.00019178,2]
[334888236,1723626694888,-226.61,0.00019178,2]
[334888237,1723626694897,-500.0,0.00019178,2]
[334888238,1723626694907,-591.86,0.00019178,2]
[334888239,1723626694917,-666.36,0.00019178,2]
[334888240,1723626694929,-554.42,0.00019178,2]
[334888241,1723626694939,-500.0,0.00019178,2]
[334888242,1723626694950,-305.33777244,0.00019178,2]
[334888243,1723626694959,-573.31,0.00019178,2]
[334888244,1723626694968,-500.0,0.00019178,2]
[334888245,1723626694979,-500.0,0.00019178,2]
[334888246,1723626694988,-500.0,0.00019178,2]
[334888247,1723626694998,-501.97499473,0.00019178,2]
[334888248,1723626695007,-156.22386061,0.00019178,2]
[334888249,1723626695017,-783.31,0.00019178,2]
[334888250,1723626695026,-520.19,0.00019178,2]
[334888251,1723626695036,-922.73,0.00019178,2]
[334888252,1723626695045,-500.0,0.00019178,2]
[334888253,1723626695055,-830.91,0.00019178,2]
[334888254,1723626695064,-500.0,0.00019178,2]
[334888255,1723626695073,-690.05,0.00019178,2]
[334888256,1723626695083,-500.0,0.00019178,2]
[334888257,1723626695092,-818.44,0.00019178,2]
[334888258,1723626695102,-500.0,0.00019178,2]
[334888259,1723626695112,-542.84,0.00019178,2]
[334888260,1723626695122,-622.14069768,0.00019178,2]
[334888261,1723626695132,-609.17,0.00019178,2]
[334888262,1723626695142,-579.6,0.00019178,2]
[334888263,1723626695153,-653.02,0.00019178,2]
[334888264,1723626695163,-2177.45,0.00019178,2]
[334888265,1723626695173,-1063.82,0.00019178,2]
[334888266,1723626695182,-500.0,0.00019178,2]
[334888267,1723626695192,-845.57,0.00019178,2]
[334888268,1723626695201,-1527.58,0.00019178,2]
[334888269,1723626695211,-676.31,0.00019178,2]
[334888270,1723626695220,-1715.7,0.00019178,2]
[334888271,1723626695229,-500.0,0.00019178,2]
[334888272,1723626695238,-754.95,0.00019178,2]
[334888273,1723626695248,-500.0,0.00019178,2]
[334888274,1723626695257,-972.03,0.00019178,2]
[334888275,1723626695266,-524.53,0.00019178,2]
[334888276,1723626695276,-566.47282349,0.00019178,2]
[334888277,1723626695285,-770.2,0.00019178,2]
[334888278,1723626695295,-2373.49,0.00019178,2]
[334888279,1723626695304,-608.38,0.00019178,2]
[334888280,1723626695313,-562.69,0.00019178,2]
[334888281,1723626695323,-644.93,0.00019178,2]
[334888282,1723626695332,-6691.92,0.00019178,2]
[334888283,1723626695342,-2731.88,0.00019178,2]
[334888284,1723626695351,-2589.64,0.00019178,2]
[334888285,1723626695360,-552.38,0.00019178,2]
[334888286,1723626695370,-2632.4,0.00019178,2]
[334888287,1723626695525,-1402.43,0.00019178,2]
[334888288,1723626695536,-2123.25,0.00019178,2]
[334888289,1723626695547,-670.79,0.00019178,2]
[334888290,1723626695558,-759.51,0.00019178,2]
[334888291,1723626695568,-985.93,0.00019178,2]
[334888292,1723626695578,-3137.69,0.00019178,2]
[334888293,1723626695587,-357.57043608,0.00019178,2]
[334888294,1723626695597,-1305.48,0.00019178,2]
[334888295,1723626695606,-644.37,0.00019178,2]
[334888296,1723626695616,-1305.6,0.00019178,2]
[334888297,1723626695626,-536.79,0.00019178,2]
[334888298,1723626695635,-983.66,0.00019178,2]
[334888299,1723626695645,-500.0,0.00019178,2]
[334888300,1723626695655,-500.0,0.00019178,2]
[334888301,1723626695665,-677.53,0.00019178,2]
[334888302,1723626695675,-2121.13,0.00019178,2]
[334888303,1723626695685,-638.37,0.00019178,2]
[334888304,1723626695695,-759.39,0.00019178,2]
[334888305,1723626695704,-500.0,0.00019178,2]
[334888306,1723626695714,-231.70480341,0.00019178,2]
[334888307,1723626695723,-1352.79,0.00019178,2]
[334888308,1723626695735,-794.59,0.00019178,2]
[334888309,1723626695744,-849.35,0.00019178,2]
[334888310,1723626695754,-655.62,0.00019178,2]
[334888311,1723626695763,-1159.21,0.00019178,2]
[334888312,1723626695773,-733.33,0.00019178,2]
[334888313,1723626695782,-507.73110065,0.00019178,2]
[334888314,1723626695791,-562.63,0.00019178,2]
[334888315,1723626695801,-1460.87,0.00019178,2]
[334888316,1723626695810,-996.55,0.00019178,2]
[334888317,1723626695820,-1258.81,0.00019178,2]
[334888318,1723626695829,-682.77,0.00019178,2]
[334888319,1723626695838,-725.26,0.00019178,2]
[334888320,1723626695847,-796.91,0.00019178,2]
[334888321,1723626695857,-678.33,0.00019178,2]
[334888322,1723626695866,-604.11,0.00019178,2]
[334888323,1723626695876,-458.15807902,0.00019178,2]
[334888324,1723626695885,-1036.99,0.00019178,2]
[334888325,1723626695894,-684.51,0.00019178,2]
[334888326,1723626695903,-2400.86,0.00019178,2]
[334888327,1723626695913,-1157.66,0.00019178,2]
[334888328,1723626695922,-2787.1,0.00019178,2]
[334888329,1723626695933,-500.0,0.00019178,2]
[334888330,1723626695944,-1126.69,0.00019178,2]
[334888331,1723626695954,-1607.6,0.00019178,2]
[334888332,1723626695967,-780.32,0.00019178,2]
[334888333,1723626695977,-544.62,0.00019178,2]
[334888334,1723626695989,-507.47,0.00019178,2]
[334888335,1723626695999,-3758.29,0.00019178,2]
[334888336,1723626696008,-1854.98,0.00019178,2]
[334888337,1723626696017,-642.83,0.00019178,2]
[334888338,1723626696026,-556.33,0.00019178,2]
[334888339,1723626696037,-272.42271001,0.00019178,2]
[334888340,1723626696047,-659.96,0.00019178,2]
[334888341,1723626696058,-635.37,0.00019178,2]
[334888342,1723626696068,-810.55,0.00019178,2]
[334888343,1723626696077,-500.0,0.00019178,2]
[334888344,1723626696086,-734.11,0.00019178,2]
[334888345,1723626696095,-1023.98,0.00019178,2]
[334888346,1723626696105,-893.45,0.00019178,2]
[334888347,1723626696114,-2346.66,0.00019178,2]
[334888348,1723626696123,-7848.21,0.00019178,2]
[334888349,1723626696133,-687.93,0.00019178,2]
[334888350,1723626696142,-743.2,0.00019178,2]
[334888351,1723626696151,-150.0,0.00019212,4]
[334888352,1723626696162,-150.0,0.00019246,4]
[334888353,1723626696172,-150.0,0.00019246,4]
[334888354,1723626696182,-685.5,0.0001926,2]
[334888355,1723626696191,-199.41,0.0001926,2]
[334888356,1723626696201,-150.0,0.0001928,4]
[334888357,1723626696210,-150.0,0.00019347,4]
[334888358,1723626696220,-8519.39978911,0.00019355,2]
[334888359,1723626696231,-2144.81584022,0.00019382,2]
[334888360,1723626696241,-2416.6212802,0.000194,2]
[334888361,1723626696250,-1542.0,0.00019414,2]
[334888362,1723626696260,-1257.0,0.00019414,2]
[334888363,1723626696269,-1924.0,0.00019414,2]
[334888364,1723626696279,-622.0,0.00019414,2]
[334888365,1723626696289,-556.0,0.00019414,2]
[334888366,1723626696300,-1137.0,0.00019414,2]
[334888367,1723626696310,-446.0,0.00019414,2]
[334888368,1723626696321,-150.0,0.00019414,2]
[334888369,1723626696333,-810.0,0.00019414,2]
[334888370,1723626696343,-551.0,0.00019414,2]
[334888371,1723626696354,-150.0,0.00019414,2]
[334888372,1723626696364,-1895.0,0.00019414,2]
[334888373,1723626696375,-247.0,0.00019414,2]
[334888374,1723626696386,-1178.0,0.00019414,2]
[334888375,1723626696396,-3292.0,0.00019414,2]
[334888376,1723626696406,-1673.0,0.00019414,2]
[334888377,1723626696415,-21761.0,0.00019414,2]
[334888378,1723626696425,-1204.0,0.00019414,2]
[334888379,1723626696439,-5134.0,0.00019414,2]
[334888380,1723626696449,-5843.0,0.00019414,2]
[334888381,1723626696458,-289.0,0.00019414,2]
[334888382,1723626696468,-1076.0,0.00019414,2]
[334888383,1723626696479,-150.0,0.00019415,4]
[334888384,1723626696488,-150.0,0.00019415,4]
[334888385,1723626696498,-1500.86,0.00019452,2]
[334888386,1723626696509,-1105.99,0.00019452,2]
[334888387,1723626696518,-500.0,0.00019452,2]
[334888388,1723626696527,-601.4,0.00019452,2]
[334888389,1723626696536,-849.17,0.00019452,2]
[334888390,1723626696546,-466.19,0.00019452,2]
[334888391,1723626696556,-500.0,0.00019452,2]
[334888392,1723626696565,-512.44,0.00019452,2]
[334888393,1723626696575,-678.29,0.00019452,2]
[334888394,1723626696585,-511.38,0.00019452,2]
[334888395,1723626696595,-1974.32,0.00019452,2]
[334888396,1723626696604,-226.61,0.00019452,2]
[334888397,1723626696614,-500.0,0.00019452,2]
[334888398,1723626696624,-591.86,0.00019452,2]
[334888399,1723626696634,-666.36,0.00019452,2]
[334888400,1723626696644,-554.42,0.00019452,2]
[334888401,1723626696653,-343.79755415,0.00019452,2]
[334888402,1723626696663,-573.31,0.00019452,2]
[334888403,1723626696673,-783.31,0.00019452,2]
[334888404,1723626696683,-520.19,0.00019452,2]
[334888405,1723626696692,-922.73,0.00019452,2]
[334888406,1723626696702,-247.78118199,0.00019452,2]
[334888407,1723626696712,-830.91,0.00019452,2]
[334888408,1723626696721,-500.0,0.00019452,2]
[334888409,1723626696732,-690.05,0.00019452,2]
[334888410,1723626696743,-500.0,0.00019452,2]
[334888411,1723626696753,-818.44,0.00019452,2]
[334888412,1723626696762,-500.0,0.00019452,2]
[334888413,1723626696771,-542.84,0.00019452,2]
[334888414,1723626696782,-609.17,0.00019452,2]
[334888415,1723626696792,-579.6,0.00019452,2]
[334888416,1723626696801,-653.02,0.00019452,2]
[334888417,1723626696811,-2177.45,0.00019452,2]
[334888418,1723626696821,-1063.82,0.00019452,2]
[334888419,1723626696831,-163.73124109,0.00019452,2]
[334888420,1723626696841,-845.57,0.00019452,2]
[334888421,1723626696851,-1527.58,0.00019452,2]
[334888422,1723626696860,-676.31,0.00019452,2]
[334888423,1723626696870,-1715.7,0.00019452,2]
[334888424,1723626696879,-543.77451896,0.00019452,2]
[334888425,1723626696888,-754.95,0.00019452,2]
[334888426,1723626696898,-569.15328304,0.00019452,2]
[334888427,1723626696908,-972.03,0.00019452,2]
[334888428,1723626696917,-524.53,0.00019452,2]
[334888429,1723626696927,-770.2,0.00019452,2]
[334888430,1723626696936,-2373.49,0.00019452,2]
[334888431,1723626696945,-608.38,0.00019452,2]
[334888432,1723626696954,-562.69,0.00019452,2]
[334888433,1723626696964,-644.93,0.00019452,2]
[334888434,1723626696974,-6691.92,0.00019452,2]
[334888435,1723626696985,-2731.88,0.00019452,2]
[334888436,1723626696994,-2589.64,0.00019452,2]
[334888437,1723626697003,-552.38,0.00019452,2]
[334888438,1723626697012,-2632.4,0.00019452,2]
[334888439,1723626697022,-1402.43,0.00019452,2]
[334888440,1723626697032,-2123.25,0.00019452,2]
[334888441,1723626697041,-670.79,0.00019452,2]
[334888442,1723626697051,-759.51,0.00019452,2]
[334888443,1723626697060,-985.93,0.00019452,2]
[334888444,1723626697070,-3137.69,0.00019452,2]
[334888445,1723626697080,-1305.48,0.00019452,2]
[334888446,1723626697089,-644.37,0.00019452,2]
[334888447,1723626697099,-1305.6,0.00019452,2]
[334888448,1723626697108,-536.79,0.00019452,2]
[334888449,1723626697117,-983.66,0.00019452,2]
[334888450,1723626697127,-500.0,0.00019452,2]
[334888451,1723626697136,-500.0,0.00019452,2]
[334888452,1723626697145,-677.53,0.00019452,2]
[334888453,1723626697155,-2121.13,0.00019452,2]
[334888454,1723626697164,-638.37,0.00019452,2]
[334888455,1723626697174,-759.39,0.00019452,2]
[334888456,1723626697183,-442.51500477,0.00019452,2]
[334888457,1723626697193,-1352.79,0.00019452,2]
[334888458,1723626697203,-794.59,0.00019452,2]
[334888459,1723626697212,-849.35,0.00019452,2]
[334888460,1723626697221,-655.62,0.00019452,2]
[334888461,1723626697231,-1159.21,0.00019452,2]
[334888462,1723626697244,-733.33,0.00019452,2]
[334888463,1723626697261,-562.63,0.00019452,2]
[334888464,1723626697270,-1460.87,0.00019452,2]
[334888465,1723626697280,-996.55,0.00019452,2]
[334888466,1723626697289,-1258.81,0.00019452,2]
[334888467,1723626697298,-682.77,0.00019452,2]
[334888468,1723626697307,-725.26,0.00019452,2]
[334888469,1723626697316,-796.91,0.00019452,2]
[334888470,1723626697326,-678.33,0.00019452,2]
[334888471,1723626697335,-604.11,0.00019452,2]
[334888472,1723626697344,-1036.99,0.00019452,2]
[334888473,1723626697353,-684.51,0.00019452,2]
[334888474,1723626697362,-2400.86,0.00019452,2]
[334888475,1723626697371,-1157.66,0.00019452,2]
[334888476,1723626697382,-2787.1,0.00019452,2]
[334888477,1723626697391,-500.0,0.00019452,2]
[334888478,1723626697400,-1126.69,0.00019452,2]
[334888479,1723626697410,-1607.6,0.00019452,2]
[334888480,1723626697419,-780.32,0.00019452,2]
[334888481,1723626697430,-544.62,0.00019452,2]
[334888482,1723626697443,-507.47,0.00019452,2]
[334888483,1723626697452,-3758.29,0.00019452,2]
[334888484,1723626697462,-1854.98,0.00019452,2]
[334888485,1723626697471,-642.83,0.00019452,2]
[334888486,1723626697483,-556.33,0.00019452,2]
[334888487,1723626697493,-659.96,0.00019452,2]
[334888488,1723626697502,-635.37,0.00019452,2]
[334888489,1723626697512,-810.55,0.00019452,2]
[334888490,1723626697522,-500.0,0.00019452,2]
[334888491,1723626697531,-734.11,0.00019452,2]
[334888492,1723626697540,-1023.98,0.00019452,2]
[334888493,1723626697550,-893.45,0.00019452,2]
[334888494,1723626697559,-2346.66,0.00019452,2]
[334888495,1723626697569,-7848.21,0.00019452,2]
[334888496,1723626697578,-687.93,0.00019452,2]
[334888497,1723626697587,-743.2,0.00019452,2]
[334888498,1723626697596,-7000.0,0.00019463,7]
[334888499,1723626697606,-150.0,0.00019483,4]